{"text_format":"1","workbook":"xlsx","n_sheets":4,"sheets":["Funding and Sponsorship","Create Invoice","invoicetemplate","Outgoing"],"not_rendered":{"charts":0,"images":1,"macros":1,"external_links":0,"defined_names":4,"comments":0,"pivot_tables":0},"unopened":[],"bounds":{"document_bytes":16777216,"sheet_cells":100000,"rows_first":2000,"rows_last":500,"rows_between":2000,"halvings":0,"cell_chars":16384,"cell_head_chars":4096},"cells_cut":0,"cells_raw":0,"read":"whole","date_system":"1900"}

{"sheet":"Funding and Sponsorship","index":0,"n_rows":98,"n_cols":7,"rows_kept":98,"cut":false,"hidden":false,"merged":[[1,1,5,2],[1,4,1,5],[2,4,2,5],[3,4,3,5],[5,4,5,5]]}
[]
[null,"Pride 2017 - Funding/Sponsorship",null,null,"Pledged Funding",null,{"$f":"SUM(E9:E98)","v":95878.819999999992}]
[null,null,null,null,"Received Funding",null,{"$f":"SUM(F9:F98)","v":46728.82}]
[null,null,null,null,"Outstanding Funding",null,{"$f":"SUM(G9:G300)","v":49150}]
[]
[null,null,null,null,"Pledged minus outgoings",null,{"$f":"(G2-Outgoing!G2)","v":1957.5299999999843}]
[]
[null,"Invoice Number","Name","Details of Funding/Sponsorship","Pledged","Received","Outstanding"]
[null,null,"Pride in Hull 2016","Balance carried forward….",5893.57,5893.57,{"$f":"IFERROR(E9-F9,\"\")","v":0}]
[null,null,"Big Lottery Fund ","Hull UK City of Culture 2017 - banked ",10000,10000,0]
[null,null,"BP","Sponsorship banked 28/02/17",5000,5000,0]
[null,null,"Riverside","Sponsorship - resent invoice 25/04/17",1000,null,1000]
[null,null,"Rank Organisation","Grant - banked ",500,500,0]
[null,null,"New Star","Collection box banked 28/02/17",22.32,22.32,0]
[null,null,"HEYMind ","Sponsorship invoice sent 13/03/17 - banked 04/04/17",750,750,0]
[null,null,"Enterprise Rent a Car","Sponsorship - banked 05/05/17",1500,1500,0]
[null,null,"Unite","Sponsorship - sent invoice 27/04/17",17000,17000,0]
[null,null,"James Legal","Sponsorship - TBC ??",800,null,800]
[null,null,"Unison","Sponsorship - sent invoice 25/04/17",3000,3000,0]
[null,null,"360 Accountants","Sponsorship - sent invoice 29/03/17",2000,null,2000]
[null,null,"Hull City Council","Sponsorship",5000,null,5000]
[null,null,"Tish","Further stalls & vendors - estimated",4000,null,4000]
[null,null,"Comedy night ticket sales","TBC",2850,null,2850]
[null,null,"The New Star","Collection box banked 28/02/17",9.98,9.98,0]
[null,null,"RMC Digital Print","Sponsorship",2500,2500,0]
[null,null,"Cancer Research UK","Stall - ",100,null,100]
[null,null,"Hull 2017 UK City of Culture","Sponsorship",20000,null,20000]
[null,null,"SCOPE","Stall - invoice sent 23/03/17",100,null,100]
[null,null,"Wristband sales",null,12,12,0]
[null,null,"Environment Agency","Parade & Stall?",null,null,0]
[null,null,"Tbc","Bar Vendors",8000,null,8000]
[null,null,"Just Giving","Donations credited 03/05/17",160.94999999999999,160.94999999999999,0]
[null,null,"Valbon","Sponsorship sent invoice 25/04/17 ",3500,null,3500]
[null,null,"Humberside Police","Stalls - sent invoice 11/05/17",200,null,200]
[null,null,"City Healthcare Partnership","Stall - banked 05/05/17",100,100,0]
[null,null,"East Riding Fertility Services","Stall - banked 05/05/17",280,280]
[null,null,"Switchboard","Stall - sent invoice 11/05/17",100,null,100]
[null,null,"NHS Hull CCG","Sponsorship",1500,null,1500]
[null,null,null,null,null,null,0]
[null,null,null,null,null,null,0]
[null,null,null,null,null,null,0]
[null,null,null,null,null,null,0]
[null,null,null,null,null,null,0]
[null,null,null,null,null,null,0]
[null,null,null,null,null,null,0]
[null,null,null,null,null,null,0]
[null,null,null,null,null,null,0]
[null,null,null,null,null,null,0]
[null,null,null,null,null,null,0]
[null,null,null,null,null,null,0]
[null,null,null,null,null,null,0]
[null,null,null,null,null,null,0]
[null,null,null,null,null,null,0]
[null,null,null,null,null,null,0]
[null,null,null,null,null,null,0]
[null,null,null,null,null,null,0]
[null,null,null,null,null,null,0]
[null,null,null,null,null,null,0]
[null,null,null,null,null,null,0]
[null,null,null,null,null,null,0]
[null,null,null,null,null,null,0]
[null,null,null,null,null,null,0]
[null,null,null,null,null,null,0]
[null,null,null,null,null,null,0]
[null,null,null,null,null,null,0]
[null,null,null,null,null,null,0]
[null,null,null,null,null,null,0]
[null,null,null,null,null,null,0]
[null,null,null,null,null,null,0]
[null,null,null,null,null,null,0]
[null,null,null,null,null,null,0]
[null,null,null,null,null,null,0]
[null,null,null,null,null,null,0]
[null,null,null,null,null,null,{"$f":"IFERROR(E74-F74,\"\")","v":0}]
[null,null,null,null,null,null,0]
[null,null,null,null,null,null,0]
[null,null,null,null,null,null,0]
[null,null,null,null,null,null,0]
[null,null,null,null,null,null,0]
[null,null,null,null,null,null,0]
[null,null,null,null,null,null,0]
[null,null,null,null,null,null,0]
[null,null,null,null,null,null,0]
[null,null,null,null,null,null,0]
[null,null,null,null,null,null,0]
[null,null,null,null,null,null,0]
[null,null,null,null,null,null,0]
[null,null,null,null,null,null,0]
[null,null,null,null,null,null,0]
[null,null,null,null,null,null,0]
[null,null,null,null,null,null,0]
[null,null,null,null,null,null,0]
[null,null,null,null,null,null,0]
[null,null,null,null,null,null,0]
[null,null,null,null,null,null,0]
[null,null,null,null,null,null,0]
[null,null,null,null,null,null,0]
[null,null,null,null,null,null,0]

{"sheet":"Create Invoice","index":1,"n_rows":46,"n_cols":9,"rows_kept":46,"cut":false,"hidden":false,"merged":[[20,1,20,3],[21,1,28,3],[21,4,28,4]]}
[]
[]
[null,null,null,null,null,null,null,null,"creating an invoice"]
[null,"Name",null,null,null,null,null,null,"Fill in the sections to the left. "]
[null,"Address",null,null,null,null,null,null,"Invoice number will be calculated accordingly when button below is clicked"]
[null,null,null,null,null,null,null,null,"Remember to click button or invoice will not be saved/numbers will be messed up!"]
[]
[]
[]
[]
[]
[]
[]
[null,"Invoice Number",56]
[null,"Tax Date"]
[]
[]
[]
[]
[]
[null,"INVOICE",null,null,"Total"]
[]
[]
[]
[]
[]
[]
[]
[]
[]
[]
[]
[null,"Payment terms: cheque payable to Hull LGBT+ Community Pride or by bank transfer"]
[]
[null,"Bank: HSBC"]
[null,"Account Name: HULL LGBT+ COMMUNITY PRIDE"]
[null,"Sort Code: 40-25-49"]
[null,"Account Number: 00226122"]
[]
[]
[null,"Hull LGBT+ Community Pride"]
[null,"21 Hessle Road"]
[null,"Hull LGBT+ Community Pride"]
[null,"HU3 2AA"]
[]
[null,"Registered Charity","no. 1170314"]

{"sheet":"invoicetemplate","index":2,"n_rows":51,"n_cols":9,"rows_kept":51,"cut":false,"hidden":true,"merged":[[21,1,28,3],[21,4,28,4],[20,1,20,3]]}
[{"$f":"'Create Invoice'!A1","v":0},{"$f":"'Create Invoice'!B1","v":0},{"$f":"'Create Invoice'!C1","v":0},{"$f":"'Create Invoice'!D1","v":0},{"$f":"'Create Invoice'!E1","v":0},{"$f":"'Create Invoice'!F1","v":0}]
[{"$f":"'Create Invoice'!A2","v":0},{"$f":"'Create Invoice'!B2","v":0},{"$f":"'Create Invoice'!C2","v":0},{"$f":"'Create Invoice'!D2","v":0},{"$f":"'Create Invoice'!E2","v":0},{"$f":"'Create Invoice'!F2","v":0}]
[{"$f":"'Create Invoice'!A3","v":0},{"$f":"'Create Invoice'!B3","v":0},{"$f":"'Create Invoice'!C3","v":0},{"$f":"'Create Invoice'!D3","v":0},{"$f":"'Create Invoice'!E3","v":0},{"$f":"'Create Invoice'!F3","v":0}]
[{"$f":"'Create Invoice'!A4","v":0},{"$f":"'Create Invoice'!B4","v":"Name"},{"$f":"'Create Invoice'!C4","v":0},{"$f":"'Create Invoice'!D4","v":0},{"$f":"'Create Invoice'!E4","v":0},{"$f":"'Create Invoice'!F4","v":0}]
[{"$f":"'Create Invoice'!A5","v":0},{"$f":"'Create Invoice'!B5","v":"Address"},{"$f":"'Create Invoice'!C5","v":0},{"$f":"'Create Invoice'!D5","v":0},{"$f":"'Create Invoice'!E5","v":0},{"$f":"'Create Invoice'!F5","v":0}]
[{"$f":"'Create Invoice'!A6","v":0},{"$f":"'Create Invoice'!B6","v":0},{"$f":"'Create Invoice'!C6","v":0},{"$f":"'Create Invoice'!D6","v":0},{"$f":"'Create Invoice'!E6","v":0},{"$f":"'Create Invoice'!F6","v":0}]
[{"$f":"'Create Invoice'!A7","v":0},{"$f":"'Create Invoice'!B7","v":0},{"$f":"'Create Invoice'!C7","v":0},{"$f":"'Create Invoice'!D7","v":0},{"$f":"'Create Invoice'!E7","v":0},{"$f":"'Create Invoice'!F7","v":0}]
[{"$f":"'Create Invoice'!A8","v":0},{"$f":"'Create Invoice'!B8","v":0},{"$f":"'Create Invoice'!C8","v":0},{"$f":"'Create Invoice'!D8","v":0},{"$f":"'Create Invoice'!E8","v":0},{"$f":"'Create Invoice'!F8","v":0}]
[{"$f":"'Create Invoice'!A9","v":0},{"$f":"'Create Invoice'!B9","v":0},{"$f":"'Create Invoice'!C9","v":0},{"$f":"'Create Invoice'!D9","v":0},{"$f":"'Create Invoice'!E9","v":0},{"$f":"'Create Invoice'!F9","v":0},null,null,"DO NOT EDIT THIS SHEET."]
[{"$f":"'Create Invoice'!A10","v":0},{"$f":"'Create Invoice'!B10","v":0},{"$f":"'Create Invoice'!C10","v":0},{"$f":"'Create Invoice'!D10","v":0},{"$f":"'Create Invoice'!E10","v":0},{"$f":"'Create Invoice'!F10","v":0},null,null,"PRINT TO PDF TO SAVE A PDF TO EMAIL"]
[{"$f":"'Create Invoice'!A11","v":0},{"$f":"'Create Invoice'!B11","v":0},{"$f":"'Create Invoice'!C11","v":0},{"$f":"'Create Invoice'!D11","v":0},{"$f":"'Create Invoice'!E11","v":0},{"$f":"'Create Invoice'!F11","v":0},null,null,"CLICK HOME TO INPUT A NEW INVOICE"]
[{"$f":"'Create Invoice'!A12","v":0},{"$f":"'Create Invoice'!B12","v":0},{"$f":"'Create Invoice'!C12","v":0},{"$f":"'Create Invoice'!D12","v":0},{"$f":"'Create Invoice'!E12","v":0},{"$f":"'Create Invoice'!F12","v":0}]
[{"$f":"'Create Invoice'!A13","v":0},{"$f":"'Create Invoice'!B13","v":0},{"$f":"'Create Invoice'!C13","v":0},{"$f":"'Create Invoice'!D13","v":0},{"$f":"'Create Invoice'!E13","v":0},{"$f":"'Create Invoice'!F13","v":0}]
[{"$f":"'Create Invoice'!A14","v":0},{"$f":"'Create Invoice'!B14","v":"Invoice Number"},{"$f":"'Create Invoice'!C14","v":56},{"$f":"'Create Invoice'!D14","v":0},{"$f":"'Create Invoice'!E14","v":0},{"$f":"'Create Invoice'!F14","v":0}]
[{"$f":"'Create Invoice'!A15","v":0},{"$f":"'Create Invoice'!B15","v":"Tax Date"},{"$f":"'Create Invoice'!C15","v":0},{"$f":"'Create Invoice'!D15","v":0},{"$f":"'Create Invoice'!E15","v":0},{"$f":"'Create Invoice'!F15","v":0}]
[{"$f":"'Create Invoice'!A16","v":0},{"$f":"'Create Invoice'!B16","v":0},{"$f":"'Create Invoice'!C16","v":0},{"$f":"'Create Invoice'!D16","v":0},{"$f":"'Create Invoice'!E16","v":0},{"$f":"'Create Invoice'!F16","v":0}]
[{"$f":"'Create Invoice'!A17","v":0},{"$f":"'Create Invoice'!B17","v":0},{"$f":"'Create Invoice'!C17","v":0},{"$f":"'Create Invoice'!D17","v":0},{"$f":"'Create Invoice'!E17","v":0},{"$f":"'Create Invoice'!F17","v":0}]
[{"$f":"'Create Invoice'!A18","v":0},{"$f":"'Create Invoice'!B18","v":0},{"$f":"'Create Invoice'!C18","v":0},{"$f":"'Create Invoice'!D18","v":0},{"$f":"'Create Invoice'!E18","v":0},{"$f":"'Create Invoice'!F18","v":0}]
[{"$f":"'Create Invoice'!A19","v":0},{"$f":"'Create Invoice'!B19","v":0},{"$f":"'Create Invoice'!C19","v":0},{"$f":"'Create Invoice'!D19","v":0},{"$f":"'Create Invoice'!E19","v":0},{"$f":"'Create Invoice'!F19","v":0}]
[{"$f":"'Create Invoice'!A20","v":0},{"$f":"'Create Invoice'!B20","v":0},{"$f":"'Create Invoice'!C20","v":0},{"$f":"'Create Invoice'!D20","v":0},{"$f":"'Create Invoice'!E20","v":0},{"$f":"'Create Invoice'!F20","v":0}]
[{"$f":"'Create Invoice'!A21","v":0},{"$f":"'Create Invoice'!B21","v":"INVOICE"},null,null,{"$f":"'Create Invoice'!E21","v":"Total"},{"$f":"'Create Invoice'!F21","v":0}]
[{"$f":"'Create Invoice'!A22","v":0},{"$f":"'Create Invoice'!B22","v":0},null,null,{"$f":"'Create Invoice'!E22","v":0},{"$f":"'Create Invoice'!F22","v":0}]
[{"$f":"'Create Invoice'!A23","v":0},null,null,null,null,{"$f":"'Create Invoice'!F23","v":0}]
[{"$f":"'Create Invoice'!A24","v":0},null,null,null,null,{"$f":"'Create Invoice'!F24","v":0}]
[{"$f":"'Create Invoice'!A25","v":0},null,null,null,null,{"$f":"'Create Invoice'!F25","v":0}]
[{"$f":"'Create Invoice'!A26","v":0},null,null,null,null,{"$f":"'Create Invoice'!F26","v":0}]
[{"$f":"'Create Invoice'!A27","v":0},null,null,null,null,{"$f":"'Create Invoice'!F27","v":0}]
[{"$f":"'Create Invoice'!A28","v":0},null,null,null,null,{"$f":"'Create Invoice'!F28","v":0}]
[{"$f":"'Create Invoice'!A29","v":0},null,null,null,null,{"$f":"'Create Invoice'!F29","v":0}]
[{"$f":"'Create Invoice'!A30","v":0},{"$f":"'Create Invoice'!B30","v":0},null,null,null,{"$f":"'Create Invoice'!F30","v":0}]
[{"$f":"'Create Invoice'!A31","v":0},{"$f":"'Create Invoice'!B31","v":0},null,null,null,{"$f":"'Create Invoice'!F31","v":0}]
[{"$f":"'Create Invoice'!A32","v":0},{"$f":"'Create Invoice'!B32","v":0},null,null,null,{"$f":"'Create Invoice'!F32","v":0}]
[{"$f":"'Create Invoice'!A33","v":0},{"$f":"'Create Invoice'!B33","v":"Payment terms: cheque payable to Hull LGBT+ Community Pride or by bank transfer"},null,null,null,{"$f":"'Create Invoice'!F33","v":0}]
[{"$f":"'Create Invoice'!A34","v":0},{"$f":"'Create Invoice'!B34","v":0},null,null,null,{"$f":"'Create Invoice'!F34","v":0}]
[{"$f":"'Create Invoice'!A35","v":0},{"$f":"'Create Invoice'!B35","v":"Bank: HSBC"},null,null,null,{"$f":"'Create Invoice'!F35","v":0}]
[{"$f":"'Create Invoice'!A36","v":0},{"$f":"'Create Invoice'!B36","v":"Account Name: HULL LGBT+ COMMUNITY PRIDE"},null,null,null,{"$f":"'Create Invoice'!F36","v":0}]
[{"$f":"'Create Invoice'!A37","v":0},{"$f":"'Create Invoice'!B37","v":"Sort Code: 40-25-49"},null,null,null,{"$f":"'Create Invoice'!F37","v":0}]
[{"$f":"'Create Invoice'!A38","v":0},{"$f":"'Create Invoice'!B38","v":"Account Number: 00226122"},null,null,null,{"$f":"'Create Invoice'!F38","v":0}]
[{"$f":"'Create Invoice'!A39","v":0},{"$f":"'Create Invoice'!B39","v":0},null,null,null,{"$f":"'Create Invoice'!F39","v":0}]
[{"$f":"'Create Invoice'!A40","v":0},{"$f":"'Create Invoice'!B40","v":0},null,null,null,{"$f":"'Create Invoice'!F40","v":0}]
[{"$f":"'Create Invoice'!A41","v":0},{"$f":"'Create Invoice'!B41","v":"Hull LGBT+ Community Pride"},null,null,null,{"$f":"'Create Invoice'!F41","v":0}]
[{"$f":"'Create Invoice'!A42","v":0},{"$f":"'Create Invoice'!B42","v":"21 Hessle Road"},null,null,null,{"$f":"'Create Invoice'!F42","v":0}]
[{"$f":"'Create Invoice'!A43","v":0},{"$f":"'Create Invoice'!B43","v":"Hull LGBT+ Community Pride"},null,null,null,{"$f":"'Create Invoice'!F43","v":0}]
[{"$f":"'Create Invoice'!A44","v":0},{"$f":"'Create Invoice'!B44","v":"HU3 2AA"},null,null,null,{"$f":"'Create Invoice'!F44","v":0}]
[{"$f":"'Create Invoice'!A45","v":0},{"$f":"'Create Invoice'!B45","v":0},null,null,null,{"$f":"'Create Invoice'!F45","v":0}]
[{"$f":"'Create Invoice'!A46","v":0},{"$f":"'Create Invoice'!B46","v":"Registered Charity"},null,null,null,{"$f":"'Create Invoice'!F46","v":0}]
[{"$f":"'Create Invoice'!A47","v":0},{"$f":"'Create Invoice'!B47","v":0},null,null,null,{"$f":"'Create Invoice'!F47","v":0}]
[{"$f":"'Create Invoice'!A48","v":0},{"$f":"'Create Invoice'!B48","v":0},{"$f":"'Create Invoice'!C48","v":0},{"$f":"'Create Invoice'!D48","v":0},{"$f":"'Create Invoice'!E48","v":0},{"$f":"'Create Invoice'!F48","v":0}]
[{"$f":"'Create Invoice'!A49","v":0},{"$f":"'Create Invoice'!B49","v":0},{"$f":"'Create Invoice'!C49","v":0},{"$f":"'Create Invoice'!D49","v":0},{"$f":"'Create Invoice'!E49","v":0},{"$f":"'Create Invoice'!F49","v":0}]
[{"$f":"'Create Invoice'!A50","v":0},{"$f":"'Create Invoice'!B50","v":0},{"$f":"'Create Invoice'!C50","v":0},{"$f":"'Create Invoice'!D50","v":0},{"$f":"'Create Invoice'!E50","v":0},{"$f":"'Create Invoice'!F50","v":0}]
[{"$f":"'Create Invoice'!A51","v":0},{"$f":"'Create Invoice'!B51","v":0},{"$f":"'Create Invoice'!C51","v":0},{"$f":"'Create Invoice'!D51","v":0},{"$f":"'Create Invoice'!E51","v":0},{"$f":"'Create Invoice'!F51","v":0}]

{"sheet":"Outgoing","index":3,"n_rows":304,"n_cols":7,"rows_kept":304,"cut":false,"hidden":false,"merged":[[1,4,1,5],[2,4,2,5],[3,4,3,5],[5,4,5,5],[1,1,5,1]]}
[]
[null,"Outgoings",null,null,"Total outgoings",null,{"$f":"SUM(E9:E304)","v":93921.290000000008}]
[null,null,null,null,"Amount Paid",null,{"$f":"SUM(F9:F304)","v":7831.29}]
[null,null,null,null,"Outstanding",null,{"$f":"SUM(G9:G304)","v":86090}]
[]
[null,null,null,null,"Pledged minus outgoings",null,{"$f":"('Funding and Sponsorship'!G2-G2)","v":1957.5299999999843}]
[]
[null,"Name","Service/Product","Net","Gross","Total Paid","Outstanding"]
[null,"360 Accountants","Registered Charity application (no. 1170314)",300,{"$f":"D9*1.2","v":360},360,{"$f":"E9-F9","v":0}]
[null,"Andy Train","Expenses UKPON meeting Cardiff",null,199.3,199.3,{"$f":"E10-F10","v":0}]
[null,"Ben","Pride in Hull web hosting",null,24.96,24.96,0]
[null,"Polari","Literary event Thursday (estimated)",null,1300,null,1300]
[null,"Danielle","Comedy night (tbc)",null,4100,null,4100]
[null,"Addplant","Toilets (38 plus 5 disabled tbc)",2130,2556,null,2556]
[null,"All Occasions","Barriers / disabled viewing area",3613.15,{"$f":"D15*1.2","v":4335.78},480,3855.7799999999997]
[null,null,"Stage (tbc)",14221.88,17066.259999999998,null,17066.259999999998]
[null,"CN Security Limited","Security",13415.5,16098.599999999999,null,16098.599999999999]
[null,null,"Road Closures (estimated)",null,500,null,500]
[null,"Kennett's","Event Insurance (estimated)",null,1800,null,1800]
[null,"Marc Almond","Performance",6000,7200,3600,3600]
[null,"Trevor J Bailey","Travel costs Marc Almond",null,425,425,0]
[null,null,"Banners for stage/signage in kind",null,0,null,0]
[null,null,"T shirts for volunteers (estimated)",null,400,null,400]
[null,null,"Van Hire? (tbc)",null,250,null,250]
[null,null,"Riders (tbc)",null,250,null,250]
[null,null,"Lockable dressing room (Addplant?)",null,500,null,500]
[null,null,"Full length mirror",null,40,null,40]
[null,"HCC","Waste Bins",null,1823.2,null,1823.2]
[null,"Andy Train","Wristbands x 3,000",null,527.88,527.88,0]
[null,"Andy Train","Lanyards",null,158.58000000000001,158.58000000000001]
[null,"Sooz Donkin","Budget for artists (tbc)",null,25000,null,25000]
[null,"Emma Wilkinson","Food/drinks volunteer's buffet 03/03/17 (paid 21/03/17 &",null,105.95,105.95,0]
[null,"TNT International","Taxes/duties wristbands - paid 16/03/17",null,38.58,38.58,0]
[null,"TNT International","Taxes/duties lanyards - paid 16/03/17",null,27.24,27.24,0]
[null,"St John's Ambulance","Medical Cover",646.79999999999995,776.16,null,776.16]
[null,"Culture Music","Symphonia",null,3500,1000,2500]
[null,"Blue Yonder","Event Management",3460,4152,828,3324]
[null,"ApposArt Theatre Co","Lads and Lasses play",null,350,null,350]
[null,"Andy Train","Mileage Cardiff convention ",null,55.8,55.8,0]
[null,null,null,null,0,null,0]
[null,null,null,null,0,null,0]
[null,null,null,null,0,null,0]
[null,null,null,null,0,null,0]
[null,null,null,null,0,null,0]
[null,null,null,null,0,null,0]
[null,null,null,null,0,null,0]
[null,null,null,null,0,null,0]
[null,null,null,null,0,null,0]
[null,null,null,null,0,null,0]
[null,null,null,null,0,null,0]
[null,null,null,null,0,null,0]
[null,null,null,null,0,null,0]
[null,null,null,null,0,null,0]
[null,null,null,null,0,null,0]
[null,null,null,null,0,null,0]
[null,null,null,null,0,null,0]
[null,null,null,null,0,null,0]
[null,null,null,null,0,null,0]
[null,null,null,null,0,null,0]
[null,null,null,null,0,null,0]
[null,null,null,null,0,null,0]
[null,null,null,null,0,null,0]
[null,null,null,null,0,null,0]
[null,null,null,null,0,null,0]
[null,null,null,null,0,null,0]
[null,null,null,null,0,null,0]
[null,null,null,null,0,null,0]
[null,null,null,null,0,null,0]
[null,null,null,null,0,null,0]
[null,null,null,null,0,null,0]
[null,null,null,null,0,null,0]
[null,null,null,null,0,null,0]
[null,null,null,null,0,null,0]
[null,null,null,null,{"$f":"D74*1.2","v":0},null,{"$f":"E74-F74","v":0}]
[null,null,null,null,0,null,0]
[null,null,null,null,0,null,0]
[null,null,null,null,0,null,0]
[null,null,null,null,0,null,0]
[null,null,null,null,0,null,0]
[null,null,null,null,0,null,0]
[null,null,null,null,0,null,0]
[null,null,null,null,0,null,0]
[null,null,null,null,0,null,0]
[null,null,null,null,0,null,0]
[null,null,null,null,0,null,0]
[null,null,null,null,0,null,0]
[null,null,null,null,0,null,0]
[null,null,null,null,0,null,0]
[null,null,null,null,0,null,0]
[null,null,null,null,0,null,0]
[null,null,null,null,0,null,0]
[null,null,null,null,0,null,0]
[null,null,null,null,0,null,0]
[null,null,null,null,0,null,0]
[null,null,null,null,0,null,0]
[null,null,null,null,0,null,0]
[null,null,null,null,0,null,0]
[null,null,null,null,0,null,0]
[null,null,null,null,0,null,0]
[null,null,null,null,0,null,0]
[null,null,null,null,0,null,0]
[null,null,null,null,0,null,0]
[null,null,null,null,0,null,0]
[null,null,null,null,0,null,0]
[null,null,null,null,0,null,0]
[null,null,null,null,0,null,0]
[null,null,null,null,0,null,0]
[null,null,null,null,0,null,0]
[null,null,null,null,0,null,0]
[null,null,null,null,0,null,0]
[null,null,null,null,0,null,0]
[null,null,null,null,0,null,0]
[null,null,null,null,0,null,0]
[null,null,null,null,0,null,0]
[null,null,null,null,0,null,0]
[null,null,null,null,0,null,0]
[null,null,null,null,0,null,0]
[null,null,null,null,0,null,0]
[null,null,null,null,0,null,0]
[null,null,null,null,0,null,0]
[null,null,null,null,0,null,0]
[null,null,null,null,0,null,0]
[null,null,null,null,0,null,0]
[null,null,null,null,0,null,0]
[null,null,null,null,0,null,0]
[null,null,null,null,0,null,0]
[null,null,null,null,0,null,0]
[null,null,null,null,0,null,0]
[null,null,null,null,0,null,0]
[null,null,null,null,0,null,0]
[null,null,null,null,0,null,0]
[null,null,null,null,0,null,0]
[null,null,null,null,0,null,0]
[null,null,null,null,0,null,0]
[null,null,null,null,0,null,0]
[null,null,null,null,0,null,0]
[null,null,null,null,0,null,0]
[null,null,null,null,{"$f":"D138*1.2","v":0},null,{"$f":"E138-F138","v":0}]
[null,null,null,null,0,null,0]
[null,null,null,null,0,null,0]
[null,null,null,null,0,null,0]
[null,null,null,null,0,null,0]
[null,null,null,null,0,null,0]
[null,null,null,null,0,null,0]
[null,null,null,null,0,null,0]
[null,null,null,null,0,null,0]
[null,null,null,null,0,null,0]
[null,null,null,null,0,null,0]
[null,null,null,null,0,null,0]
[null,null,null,null,0,null,0]
[null,null,null,null,0,null,0]
[null,null,null,null,0,null,0]
[null,null,null,null,0,null,0]
[null,null,null,null,0,null,0]
[null,null,null,null,0,null,0]
[null,null,null,null,0,null,0]
[null,null,null,null,0,null,0]
[null,null,null,null,0,null,0]
[null,null,null,null,0,null,0]
[null,null,null,null,0,null,0]
[null,null,null,null,0,null,0]
[null,null,null,null,0,null,0]
[null,null,null,null,0,null,0]
[null,null,null,null,0,null,0]
[null,null,null,null,0,null,0]
[null,null,null,null,0,null,0]
[null,null,null,null,0,null,0]
[null,null,null,null,0,null,0]
[null,null,null,null,0,null,0]
[null,null,null,null,0,null,0]
[null,null,null,null,0,null,0]
[null,null,null,null,0,null,0]
[null,null,null,null,0,null,0]
[null,null,null,null,0,null,0]
[null,null,null,null,0,null,0]
[null,null,null,null,0,null,0]
[null,null,null,null,0,null,0]
[null,null,null,null,0,null,0]
[null,null,null,null,0,null,0]
[null,null,null,null,0,null,0]
[null,null,null,null,0,null,0]
[null,null,null,null,0,null,0]
[null,null,null,null,0,null,0]
[null,null,null,null,0,null,0]
[null,null,null,null,0,null,0]
[null,null,null,null,0,null,0]
[null,null,null,null,0,null,0]
[null,null,null,null,0,null,0]
[null,null,null,null,0,null,0]
[null,null,null,null,0,null,0]
[null,null,null,null,0,null,0]
[null,null,null,null,0,null,0]
[null,null,null,null,0,null,0]
[null,null,null,null,0,null,0]
[null,null,null,null,0,null,0]
[null,null,null,null,0,null,0]
[null,null,null,null,0,null,0]
[null,null,null,null,0,null,0]
[null,null,null,null,0,null,0]
[null,null,null,null,0,null,0]
[null,null,null,null,0,null,0]
[null,null,null,null,{"$f":"D202*1.2","v":0},null,{"$f":"E202-F202","v":0}]
[null,null,null,null,0,null,0]
[null,null,null,null,0,null,0]
[null,null,null,null,0,null,0]
[null,null,null,null,0,null,0]
[null,null,null,null,0,null,0]
[null,null,null,null,0,null,0]
[null,null,null,null,0,null,0]
[null,null,null,null,0,null,0]
[null,null,null,null,0,null,0]
[null,null,null,null,0,null,0]
[null,null,null,null,0,null,0]
[null,null,null,null,0,null,0]
[null,null,null,null,0,null,0]
[null,null,null,null,0,null,0]
[null,null,null,null,0,null,0]
[null,null,null,null,0,null,0]
[null,null,null,null,0,null,0]
[null,null,null,null,0,null,0]
[null,null,null,null,0,null,0]
[null,null,null,null,0,null,0]
[null,null,null,null,0,null,0]
[null,null,null,null,0,null,0]
[null,null,null,null,0,null,0]
[null,null,null,null,0,null,0]
[null,null,null,null,0,null,0]
[null,null,null,null,0,null,0]
[null,null,null,null,0,null,0]
[null,null,null,null,0,null,0]
[null,null,null,null,0,null,0]
[null,null,null,null,0,null,0]
[null,null,null,null,0,null,0]
[null,null,null,null,0,null,0]
[null,null,null,null,0,null,0]
[null,null,null,null,0,null,0]
[null,null,null,null,0,null,0]
[null,null,null,null,0,null,0]
[null,null,null,null,0,null,0]
[null,null,null,null,0,null,0]
[null,null,null,null,0,null,0]
[null,null,null,null,0,null,0]
[null,null,null,null,0,null,0]
[null,null,null,null,0,null,0]
[null,null,null,null,0,null,0]
[null,null,null,null,0,null,0]
[null,null,null,null,0,null,0]
[null,null,null,null,0,null,0]
[null,null,null,null,0,null,0]
[null,null,null,null,0,null,0]
[null,null,null,null,0,null,0]
[null,null,null,null,0,null,0]
[null,null,null,null,0,null,0]
[null,null,null,null,0,null,0]
[null,null,null,null,0,null,0]
[null,null,null,null,0,null,0]
[null,null,null,null,0,null,0]
[null,null,null,null,0,null,0]
[null,null,null,null,0,null,0]
[null,null,null,null,0,null,0]
[null,null,null,null,0,null,0]
[null,null,null,null,0,null,0]
[null,null,null,null,0,null,0]
[null,null,null,null,0,null,0]
[null,null,null,null,0,null,0]
[null,null,null,null,{"$f":"D266*1.2","v":0},null,{"$f":"E266-F266","v":0}]
[null,null,null,null,0,null,0]
[null,null,null,null,0,null,0]
[null,null,null,null,0,null,0]
[null,null,null,null,0,null,0]
[null,null,null,null,0,null,0]
[null,null,null,null,0,null,0]
[null,null,null,null,0,null,0]
[null,null,null,null,0,null,0]
[null,null,null,null,0,null,0]
[null,null,null,null,0,null,0]
[null,null,null,null,0,null,0]
[null,null,null,null,0,null,0]
[null,null,null,null,0,null,0]
[null,null,null,null,0,null,0]
[null,null,null,null,0,null,0]
[null,null,null,null,0,null,0]
[null,null,null,null,0,null,0]
[null,null,null,null,0,null,0]
[null,null,null,null,0,null,0]
[null,null,null,null,0,null,0]
[null,null,null,null,0,null,0]
[null,null,null,null,0,null,0]
[null,null,null,null,0,null,0]
[null,null,null,null,0,null,0]
[null,null,null,null,0,null,0]
[null,null,null,null,0,null,0]
[null,null,null,null,0,null,0]
[null,null,null,null,0,null,0]
[null,null,null,null,0,null,0]
[null,null,null,null,0,null,0]
[null,null,null,null,0,null,0]
[null,null,null,null,0,null,0]
[null,null,null,null,0,null,0]
[null,null,null,null,0,null,0]
[null,null,null,null,0,null,0]
[null,null,null,null,0,null,0]
[null,null,null,null,0,null,0]
[null,null,null,null,0,null,0]